bitfinex-derivatives/quotes_SOLF0:USTF0_20250518
["timestamp","ask_amount","ask_price","bid_price","bid_amount"]
[1747594558389,5.8732,170.2,170.15,5.8746]
[1747594558992,5.8733,170.19,170.15,5.8746]
[1747594559490,5.872,170.23,170.12,80.4]
[1747594559689,1.884,170.24,170.12,80.4]
[1747594560092,2.80743635,170.23,170.12,80.4]
[1747594560393,2.80696143,170.22,170.12,80.4]
[1747594560596,14.18118247,170.23,170.12,80.4]
[1747594560795,2.80710417,170.22,170.09,2.0206]
[1747594560988,5.8749,170.15,170.08,80.44]
[1747594561201,79.86,170.17,170.08,80.44]
[1747594561795,79.86,170.17,170.13,5.8751]
[1747594562091,79.86,170.17,170.08,80.44]
[1747594562495,79.86,170.17,170.14,5.875]
[1747594563096,79.86,170.17,170.13,5.8753]
[1747594564299,79.86,170.17,170.14,5.8749]
[1747594564595,79.86,170.17,170.08,80.44]
[1747594564793,5.8761,170.11,170.07,5.8774]
[1747594565500,5.8761,170.11,170.06,94.56195501]
[1747594565700,5.8758,170.12,170.06,88.68425501]
[1747594565891,86.1624,170.16,170.06,88.68425501]
[1747594566091,86.1624,170.16,170.08,5.8768]
[1747594566390,5.8756,170.13,170.08,5.8768]
[1747594566901,92.037,170.16,170.06,88.68425501]
[1747594567201,92.037,170.16,170.07,80.46]
[1747594567390,86.1624,170.16,170.07,80.46]
[1747594567992,86.1624,170.16,170.06,88.68425501]
[1747594568194,86.1624,170.16,170.07,5.8773]
[1747594568396,86.1624,170.16,170.06,88.68425501]
[1747594568811,14.18118247,170.15,170.03,80.46]
[1747594569305,5.8762,170.11,170.06,5.8776]
[1747594569508,5.8762,170.11,170.03,80.46]
[1747594569509,79.66,170.11,170.03,80.46]
[1747594569800,79.66,170.11,170.06,5.8776]
[1747594570008,79.66,170.11,170.03,80.46]
[1747594570405,85.5363,170.11,170.03,80.46]
[1747594570605,79.66,170.11,170.03,80.46]
[1747594570907,5.8765,170.1,170.06,5.8775]
[1747594571608,5.8765,170.1,170.03,80.46]
[1747594571609,5.8768,170.09,170.05,5.878]
[1747594571812,79.66,170.11,170.03,80.46]
[1747594572215,85.5361,170.11,170.07,5.8773]
[1747594572516,79.5,170.12,170.03,80.46]
[1747594572719,85.376,170.12,170.07,5.8772]
[1747594573012,79.5,170.12,170.07,5.8772]
[1747594573209,5.8767,170.1,170.06,5.8777]
[1747594573712,79.5,170.12,170.03,80.46]
[1747594573914,5.8768,170.09,170.06,5.8778]
[1747594575016,5.8768,170.09,170.05,5.878]
[1747594575917,5.8765,170.1,170.06,5.8778]
[1747594579918,5.8768,170.09,170.06,5.8778]
[1747594581213,5.8765,170.1,170.06,5.8778]
[1747594581819,5.8768,170.09,170.06,5.8778]
[1747594582116,79.5,170.12,170.06,5.8778]
[1747594583019,8.87738088,170.13,170.06,5.8778]
[1747594583020,5.8767,170.1,170.06,5.8778]
[1747594583220,77.84,170.11,170.06,5.8778]
[1747594583821,77.84,170.11,170.03,80.46]
[1747594584222,77.64,170.13,170.03,80.46]
[1747594584525,77.6,170.13,170.03,80.46]
[1747594584931,95.03978088,170.16,170.03,80.46]
[1747594585226,77.48,170.15,170.03,80.46]
[1747594585423,5.8758,170.12,170.03,80.46]
[1747594586725,5.8758,170.12,170.08,5.8769]
[1747594588128,5.8758,170.12,170.09,5.8767]
[1747594588332,77.48,170.15,170.03,80.46]
[1747594588824,5.875,170.14,170.03,80.46]
[1747594589528,5.8754,170.13,170.03,80.46]
[1747594589729,77.48,170.15,170.03,80.46]
[1747594590030,77.48,170.15,170.1,5.8764]
[1747594590229,5.8755,170.13,170.03,80.46]
[1747594590430,77.48,170.15,170.03,80.46]
[1747594590834,5.876,170.12,170.03,80.46]
[1747594591133,5.876,170.12,170.08,5.8769]
[1747594591526,5.876,170.12,170.03,80.46]
[1747594592234,5.876,170.12,170.03,156.78]
[1747594592627,5.8761,170.11,170.03,156.78]
[1747594592827,77.48,170.15,170.03,156.78]
[1747594593128,77.48,170.15,170.08,5.8769]
[1747594593635,5.8759,170.12,170.09,5.8767]
[1747594594034,77.48,170.15,170.03,156.78]
[1747594594637,86.1624,170.16,170.03,177.41498088]
[1747594594838,3.7863,170.16,170.03,177.41498088]
[1747594595836,5.8752,170.14,170.1,5.8764]
[1747594596636,5.8752,170.14,170.11,5.876]
[1747594597033,77.64,170.15,170.03,80.46]
[1747594597234,2.8078084,170.14,170.03,80.46]
[1747594597436,77.64,170.15,170.03,80.46]
[1747594597935,5.875,170.14,170.03,80.46]
[1747594599038,5.8754,170.13,170.09,5.8765]
[1747594600335,5.8758,170.12,170.03,80.46]
[1747594601037,5.8758,170.12,170.08,5.8769]
[1747594601339,2.82566305,170.11,170.08,5.8769]
[1747594601645,77.64,170.15,170.09,5.8765]
[1747594601837,2.82459189,170.14,170.03,156.72]
[1747594602138,2.82459189,170.13,170.08,5.8769]
[1747594602340,2.82459189,170.12,170.08,5.8769]
[1747594602542,2.82459189,170.11,170.03,156.72]
[1747594602841,5.8751,170.14,170.03,156.72]
[1747594603139,2.82493272,170.13,170.03,156.72]
[1747594603334,2.82493272,170.12,170.09,5.8765]
[1747594603637,2.82493272,170.11,170.09,5.8765]
[1747594603838,5.8751,170.14,170.1,5.8764]
[1747594604138,2.82678268,170.13,170.03,156.72]
[1747594604341,2.82678268,170.12,170.08,5.8768]
[1747594604544,2.82678268,170.11,170.03,156.72]
[1747594604835,5.8751,170.14,170.03,156.72]
[1747594605135,8.70294789,170.13,170.03,156.72]
[1747594605342,2.82754789,170.12,170.08,5.8768]
[1747594605539,2.82754789,170.11,170.08,5.8768]
[1747594605839,2.82744,170.1,170.06,5.8775]
[1747594606034,2.82744,170.09,170.06,5.8775]
[1747594606230,2.82744,170.08,170.03,80.46]
[1747594606538,76.52,170.12,170.03,80.46]
[1747594606740,5.8764,170.1,170.03,80.46]
[1747594606938,2.82674447,170.09,170.03,80.46]
[1747594607341,2.82674447,170.09,170.05,5.8779]
[1747594608144,8.70354447,170.09,170.05,5.8779]
[1747594608340,2.82674447,170.08,170.05,5.8779]
[1747594608534,2.82674447,170.08,170.06,5.8775]
[1747594608739,2.82674447,170.07,170.06,5.8775]
[1747594608942,5.8765,170.1,170.06,5.8775]
[1747594609142,2.82674447,170.09,170.06,5.8775]
[1747594609343,2.82674447,170.08,170.06,5.8775]
[1747594609545,2.82674447,170.07,170.06,5.8775]
[1747594609940,2.82674447,170.09,170.06,5.8775]
[1747594610145,2.82674447,170.08,170.06,5.8775]
[1747594610445,2.82674447,170.08,170.05,5.878]
[1747594610636,2.82674447,170.07,170.03,80.46]
[1747594610933,5.48672391,170.11,170.03,80.46]
[1747594611137,2.83019894,170.1,170.03,80.46]
[1747594611335,2.83019894,170.09,170.03,80.46]
[1747594611538,5.48672391,170.11,170.03,80.46]
[1747594611739,2.83041757,170.1,170.03,80.46]
[1747594611939,2.83041757,170.09,170.03,80.46]
[1747594612139,5.48672391,170.11,170.03,80.46]
[1747594612445,2.83114161,170.1,170.03,80.46]
[1747594612644,2.83114161,170.09,170.03,80.46]
[1747594612843,82.00672391,170.12,170.03,80.46]
[1747594613043,2.83138917,170.11,170.03,80.46]
[1747594613244,2.83138917,170.1,170.03,80.46]
[1747594613543,5.48672391,170.12,170.08,5.8768]
[1747594613750,2.83150677,170.11,170.03,80.46]
[1747594614045,2.83168902,170.1,170.03,80.46]
[1747594614246,5.48672391,170.12,170.03,80.46]
[1747594614449,2.83182883,170.11,170.1,5.8764]
[1747594616253,2.83182883,170.11,170.09,5.8767]
[1747594616456,158.90672391,170.15,170.09,5.8767]
[1747594616657,2.83318712,170.14,170.09,5.8767]
[1747594616857,2.83318712,170.13,170.03,80.46]
[1747594617057,2.83318712,170.12,170.03,80.46]
[1747594617357,8.70938712,170.11,170.07,5.8772]
[1747594617659,2.83318712,170.1,170.07,5.8772]
[1747594617853,5.8762,170.11,170.08,5.877]
[1747594618052,2.83292645,170.1,170.03,80.46]
[1747594618250,158.90672391,170.15,170.03,80.46]
[1747594618447,2.83298749,170.14,170.03,80.46]
[1747594618651,8.70838749,170.13,170.03,80.46]
[1747594618852,2.83298749,170.12,170.03,80.46]
[1747594619155,2.83298749,170.11,170.09,5.8765]
[1747594619360,2.83298749,170.1,170.03,80.46]
[1747594619560,5.8757,170.12,170.03,80.46]
[1747594619856,2.83219241,170.11,170.03,80.46]
[1747594620056,2.83219241,170.1,170.03,80.46]
[1747594620259,2.83276401,170.09,170.07,5.8774]
[1747594620452,2.83276401,170.08,170.07,5.8774]
[1747594620660,2.83276401,170.08,170.02,2.0096]
[1747594620957,2.83276401,170.07,170.02,2.0096]
[1747594621157,8.87738088,170.13,170.02,2.0096]
[1747594621158,2.83204993,170.06,170.02,2.0096]
[1747594621358,74.92,170.1,170.02,2.0096]
[1747594621563,2.83274689,170.09,170.02,2.0096]
[1747594621757,2.83274689,170.08,170.06,5.8777]
[1747594621955,2.83274689,170.07,170.06,5.8777]
[1747594622155,2.83274689,170.09,170.06,5.8777]
[1747594622361,2.83274689,170.08,170.05,5.878]
[1747594622661,2.83274689,170.07,170.05,5.878]
[1747594622957,5.8768,170.09,170.05,5.878]
[1747594623160,2.83445631,170.08,170.01,75.76]
[1747594623353,2.83445631,170.07,170.01,75.76]
[1747594623560,165.04410479,170.1,169.97,77.6335]
[1747594623561,2.83445631,170.06,169.97,77.6335]
[1747594623759,5.8787,170.04,170.0,5.8797]
[1747594623959,2.83271996,170.03,169.97,1.8735]
[1747594624164,2.83271996,170.02,169.97,1.8735]
[1747594624356,2.83271996,170.01,169.97,5.8808]
[1747594624560,2.83271996,170.0,169.97,5.8808]
[1747594624762,5.8794,170.02,169.96,75.76]
[1747594625066,2.82986103,170.01,169.96,75.76]
[1747594625255,2.82986103,170.0,169.96,75.76]
[1747594625657,5.8792,170.02,169.96,75.76]
[1747594625957,2.82890546,170.01,169.96,75.76]
[1747594626160,5.48672391,170.04,170.02,5.8789]
[1747594626467,2.82911643,170.03,170.02,5.8789]
[1747594626666,5.48672391,170.04,169.96,75.76]
[1747594627166,5.48672391,170.04,170.03,5.8788]
[1747594628168,74.94,170.06,170.03,5.8788]
[1747594628464,5.8786,170.04,169.97,76.9239]
[1747594628657,2.82284301,170.03,169.97,74.88]
[1747594628862,5.8782,170.05,169.97,74.88]
[1747594629064,2.82375788,170.04,169.97,74.88]
[1747594629264,5.8782,170.05,169.97,74.88]
[1747594629474,2.82292535,170.04,169.97,74.88]
[1747594629673,5.8782,170.05,169.97,74.88]
[1747594629969,8.70169203,170.04,170.0,5.8796]
[1747594630171,74.94,170.06,169.96,75.76]
[1747594630369,2.82207675,170.05,169.96,75.76]
[1747594630566,2.82207675,170.04,169.96,75.76]
[1747594630872,5.8784,170.05,169.96,75.76]
[1747594631060,74.94,170.06,169.96,75.76]
[1747594631265,2.82339329,170.05,170.01,5.8794]
[1747594631467,74.94,170.06,169.96,75.76]
[1747594631767,2.82356724,170.05,169.96,75.76]
[1747594631967,80.8179,170.06,169.96,75.76]
[1747594632167,2.82369999,170.05,169.96,75.76]
[1747594632363,74.94,170.06,169.96,75.76]
[1747594632671,2.82407216,170.05,169.96,75.76]
[1747594632870,74.94,170.06,169.96,75.76]
[1747594633069,2.82364545,170.05,170.02,5.8791]
[1747594633262,80.8178,170.06,170.02,5.8791]
[1747594633463,74.94,170.06,169.96,75.76]
[1747594634471,74.94,170.06,170.03,5.8787]
[1747594635361,5.8774,170.07,170.03,5.8787]
[1747594635566,8.70116935,170.06,169.96,75.76]
[1747594635771,2.82336935,170.05,169.96,75.76]
[1747594635976,75.44,170.08,169.96,75.76]
[1747594636178,5.8779,170.06,170.01,5.8792]
[1747594636367,5.8779,170.06,169.96,75.76]
[1747594636565,5.8778,170.07,170.02,5.879]
[1747594636870,2.82183124,170.06,170.02,5.879]
[1747594637069,75.44,170.08,170.02,5.879]
[1747594637372,5.8779,170.06,170.02,5.879]
[1747594637574,2.8226529,170.05,170.02,5.879]
[1747594637769,75.44,170.08,170.03,5.8788]
[1747594637975,8.69959806,170.07,170.03,5.8788]
[1747594638171,2.82219806,170.06,170.03,5.8788]
[1747594638373,5.8774,170.07,170.03,5.8788]
[1747594638576,2.82250666,170.06,170.03,5.8788]
[1747594638768,5.8774,170.07,170.03,5.8788]
[1747594638969,2.82419112,170.06,170.04,5.8785]
[1747594639169,81.24672391,170.09,169.99,74.98]
[1747594639379,2.82432486,170.08,170.0,4.0565]
[1747594639567,2.82432486,170.07,170.01,75.78]
[1747594639884,5.48672391,170.09,170.01,75.78]
[1747594640381,74.94,170.11,170.01,75.78]
[1747594640680,2.82614026,170.1,170.01,75.78]
[1747594640877,8.70254026,170.1,170.06,5.8775]
[1747594641075,74.94,170.11,170.01,75.78]
[1747594641581,2.82622695,170.1,170.01,75.78]
[1747594641782,5.8764,170.1,170.06,5.8776]
[1747594642484,2.82598286,170.09,170.01,75.78]
[1747594642782,2.82598286,170.08,170.01,75.78]
[1747594642975,74.94,170.11,170.01,75.78]
[1747594643175,5.8773,170.08,170.01,75.78]
[1747594643377,2.82495649,170.07,170.01,75.78]
[1747594643578,5.8768,170.09,170.05,5.8781]
[1747594643779,2.82610224,170.08,170.05,5.8781]
[1747594643976,5.8768,170.09,170.05,5.8781]
[1747594644180,2.826069,170.08,170.05,5.8781]
[1747594644383,5.8768,170.09,170.05,5.8781]
[1747594644581,2.82682491,170.08,170.05,5.8781]
[1747594644775,5.8771,170.08,170.05,5.8781]
[1747594644983,2.82729638,170.07,170.04,5.8783]
[1747594645282,74.94,170.11,170.04,5.8783]
[1747594645483,2.82755387,170.1,170.04,5.8783]
[1747594645685,2.82755387,170.09,170.03,5.8788]
[1747594645882,2.82755387,170.08,170.03,5.8788]
[1747594646085,2.82755387,170.07,170.03,5.8788]
[1747594646279,80.42672391,170.11,170.03,5.8788]
[1747594646474,2.82813356,170.1,170.03,5.8788]
[1747594646680,2.82813356,170.09,170.02,5.8791]
[1747594646982,2.82813356,170.08,170.02,5.8791]
[1747594647280,2.82813356,170.07,170.03,5.8788]
[1747594647482,8.70613356,170.06,170.03,5.8788]
[1747594647690,5.878,170.06,170.03,5.8788]
[1747594647891,5.878,170.06,170.02,5.879]
[1747594648086,2.8283342,170.05,169.96,74.66]
[1747594648286,74.4,170.06,169.96,74.66]
[1747594648486,2.8286593,170.05,169.96,74.66]
[1747594648693,74.4,170.06,169.96,74.66]
[1747594648887,2.82916587,170.05,169.96,74.66]
[1747594649089,74.4,170.06,169.96,74.66]
[1747594649090,80.2779,170.06,169.96,74.66]
[1747594649291,2.82921274,170.05,169.96,74.66]
[1747594649592,80.2779,170.06,170.02,5.8789]
[1747594649898,2.82876053,170.05,169.96,74.66]
[1747594650191,74.4,170.06,169.96,74.66]
[1747594650388,2.82899155,170.05,169.96,74.66]
[1747594650586,74.4,170.06,169.96,74.66]
[1747594651295,11.36352391,170.09,170.05,5.8778]
[1747594651492,2.82746222,170.08,170.05,5.8778]
[1747594651689,11.36352391,170.09,170.05,5.8778]
[1747594651895,2.82733892,170.08,170.05,5.8778]
[1747594652088,5.8768,170.09,170.05,5.8778]
[1747594652284,2.82717933,170.08,170.05,5.8778]
[1747594652488,5.8768,170.09,170.05,5.8778]
[1747594652698,2.82706827,170.08,170.05,5.8778]
[1747594652889,5.8768,170.09,170.06,5.8778]
[1747594653189,2.82769842,170.08,170.06,5.8778]
[1747594653488,5.8768,170.09,170.06,5.8778]
[1747594653688,2.82823281,170.08,170.06,5.8778]
[1747594653890,90.89598088,170.1,170.06,5.8778]
[1747594654088,2.82815922,170.09,170.06,5.8778]
[1747594654283,2.82758643,170.08,170.06,5.8778]
[1747594654492,90.89598088,170.1,170.06,5.8778]
[1747594654695,2.8273744,170.09,170.07,5.8772]
[1747594654993,2.8273744,170.08,170.01,78.4218]
[1747594655199,148.28,170.11,170.01,78.4218]
[1747594655389,8.70362622,170.1,170.06,5.8777]
[1747594655596,2.82712622,170.09,170.06,5.8777]
[1747594655795,2.82712622,170.08,170.01,78.4218]
[1747594656301,2.82712622,170.07,170.01,76.512]
[1747594656506,2.82712622,170.06,170.01,76.512]
[1747594656809,8.87738088,170.1,170.01,74.66]
[1747594657102,5.8795,170.02,169.98,5.8804]
[1747594657300,2.82664632,170.01,169.96,7.28863496]
[1747594657508,2.82391185,170.0,169.96,7.28863496]
[1747594657805,5.8801,170.0,169.96,7.28863496]
[1747594657993,2.82362293,169.99,169.96,7.28863496]
[1747594658198,5.8801,170.0,169.93,74.66]
[1747594658398,2.82385584,169.99,169.93,74.66]
[1747594658708,5.8801,170.0,169.96,5.8812]
[1747594658909,2.82356167,169.99,169.93,74.66]
[1747594659102,75.08,170.02,169.98,5.8803]
[1747594659409,2.82348041,170.01,169.98,5.8803]
[1747594659610,2.82348041,170.0,169.98,5.8803]
[1747594659906,75.08,170.02,169.99,5.8801]
[1747594660099,2.82301312,170.01,169.99,5.8801]
[1747594660299,2.82301312,170.01,169.93,74.66]
[1747594660300,2.82344697,170.0,169.93,74.66]
[1747594660500,80.9592,170.02,169.98,5.8805]
[1747594660704,2.82302298,170.01,169.98,5.8805]
[1747594660908,80.9592,170.02,169.98,5.8805]
[1747594661105,80.9592,170.02,169.93,74.66]
[1747594661106,2.82360847,170.01,169.93,74.66]
[1747594661308,75.08,170.02,169.93,74.66]
[1747594661608,2.82384972,170.01,169.98,5.8805]
[1747594661807,75.08,170.02,169.98,5.8805]
[1747594662004,2.82345369,170.01,169.98,5.8805]
[1747594662204,75.08,170.02,169.98,5.8805]
[1747594662504,2.8239182,170.01,169.98,5.8805]
[1747594662706,2.8239182,170.0,169.98,5.8805]
[1747594662906,5.48672391,170.04,169.98,5.8805]
[1747594663208,2.82318269,170.03,169.95,74.8]
[1747594663508,2.82318269,170.02,169.95,74.8]
[1747594663713,5.48672391,170.04,169.95,74.8]
[1747594663911,2.82387902,170.03,169.95,74.8]
[1747594664203,5.48672391,170.04,169.95,74.8]
[1747594664511,5.48672391,170.04,169.96,8.87738088]
[1747594665007,7.16542945,170.06,169.99,8.87738088]
[1747594665315,7.16542945,170.06,170.0,149.6]
[1747594666012,7.16542945,170.06,170.05,5.8781]
[1747594666310,10.68764797,170.08,170.05,5.8781]
[1747594666513,78.7992,170.12,170.0,149.6]
[1747594666703,2.82768646,170.11,170.0,149.6]
[1747594667013,2.82768646,170.1,170.0,149.6]
[1747594667198,5.8772,170.08,170.03,5.8785]
[1747594667402,2.82768646,170.07,170.03,5.8785]
[1747594667698,2.82768646,170.06,170.03,5.8785]
[1747594667900,76.8032,170.12,170.02,5.8791]
[1747594668200,2.82765312,170.11,170.02,5.8791]
[1747594668401,5.8777,170.07,170.02,5.8791]
[1747594668601,2.82765312,170.06,170.03,5.8787]
[1747594668811,5.8772,170.08,170.0,149.6]
[1747594669014,2.8274343,170.07,170.0,149.6]
[1747594669207,2.82733116,170.06,170.0,149.6]
[1747594669411,5.8772,170.08,170.0,149.6]
[1747594669610,2.827661,170.07,170.0,149.6]
[1747594669814,2.827661,170.06,170.04,5.8783]
[1747594670108,5.8769,170.09,170.0,149.6]
[1747594670307,2.82810977,170.08,170.0,149.6]
[1747594670506,2.82810977,170.08,170.04,5.8782]
[1747594670507,2.82810977,170.07,170.04,5.8782]
[1747594670910,5.8771,170.08,170.04,5.8782]
[1747594671114,5.8769,170.09,170.04,5.8782]
[1747594671411,2.82907605,170.08,170.04,5.8782]
[1747594671710,8.70677605,170.07,170.03,5.8788]
[1747594671913,2.82907605,170.06,170.03,5.8788]
[1747594672110,83.96862945,170.12,170.04,5.8785]
[1747594672411,2.82739829,170.11,170.0,149.6]
[1747594672612,2.82739829,170.1,170.0,149.6]
[1747594672812,2.82739829,170.09,170.0,149.6]
[1747594673110,2.82739829,170.08,170.0,149.6]
[1747594673304,5.8765,170.1,170.0,149.6]
[1747594673506,2.82788375,170.09,170.06,5.8775]
[1747594673710,2.82788375,170.08,170.06,5.8775]
[1747594674008,5.8762,170.11,170.06,5.8775]
[1747594674209,2.82801097,170.1,170.06,5.8775]
[1747594674511,2.82801097,170.09,170.06,5.8775]
[1747594674811,2.82801097,170.08,170.06,5.8775]
[1747594675012,5.8762,170.11,170.06,5.8775]
[1747594675211,2.82791929,170.1,170.06,5.8775]
[1747594675411,2.82791929,170.09,170.06,5.8775]
[1747594675619,2.82791929,170.08,170.06,5.8775]
[1747594675808,5.8762,170.11,170.06,5.8775]
[1747594676113,2.82722443,170.1,170.09,5.8767]
[1747594676312,73.76,170.13,170.05,73.78]
[1747594676513,2.82751933,170.12,170.03,73.78]
[1747594676816,2.82691915,170.11,170.03,73.78]
[1747594677014,2.82691915,170.1,170.03,73.78]
[1747594677211,2.82691915,170.09,170.03,73.78]
[1747594677412,2.82691915,170.08,170.03,73.78]
[1747594677614,2.82691915,170.07,170.05,5.8779]
[1747594677813,5.877,170.09,170.05,5.8779]
[1747594678014,2.82646285,170.08,170.05,5.8779]
[1747594678211,2.82646285,170.07,170.05,5.8779]
[1747594678413,5.8773,170.08,170.04,5.8783]
[1747594678712,2.82649312,170.07,170.04,5.8783]
[1747594679020,2.82649312,170.06,170.03,73.78]
[1747594679214,8.87738088,170.12,170.03,73.78]
[1747594679412,2.82705891,170.11,170.03,73.78]
[1747594679615,2.82705891,170.1,170.05,5.8781]
[1747594679820,2.82705891,170.09,170.03,73.78]
[1747594680120,76.26705891,170.08,170.01,5.8792]
[1747594680315,2.82705891,170.07,170.01,5.8792]
[1747594680511,2.82705891,170.06,169.98,73.78]
[1747594680818,2.82705891,170.05,170.02,5.879]
[1747594681018,2.82861124,170.04,169.98,73.78]
[1747594681328,75.3644,170.08,169.99,5.8799]
[1747594681329,5.8792,170.02,169.99,5.8799]
[1747594681519,2.82912191,170.01,169.94,81.06863496]
[1747594681724,73.48,170.03,169.94,81.06863496]
[1747594682019,2.82966056,170.02,169.94,81.06863496]
[1747594682214,2.82971414,170.01,169.94,81.06863496]
[1747594682409,5.8794,170.02,169.98,5.8803]
[1747594682616,2.82891399,170.01,169.94,81.06863496]
[1747594682820,73.4,170.07,169.94,81.06863496]
[1747594683008,5.8782,170.05,170.01,5.8794]
[1747594683212,2.82860068,170.04,170.01,5.8794]
[1747594683716,2.82860068,170.04,170.0,5.8798]
[1747594683923,2.82783943,170.03,169.94,147.12]
[1747594684123,2.82783943,170.02,169.94,147.12]
[1747594684323,2.82776561,170.01,169.98,5.8805]
[1747594684616,8.87738088,170.06,169.98,5.8805]
[1747594684823,5.8794,170.02,169.98,5.8805]
[1747594685121,2.82721964,170.01,169.98,5.8805]
[1747594685324,8.87738088,170.06,169.98,5.8805]
[1747594685623,2.8269601,170.05,169.98,5.8805]
[1747594685820,2.8269601,170.04,169.98,5.8805]
[1747594686022,5.8794,170.02,169.99,5.8802]
[1747594686422,8.87738088,170.06,169.98,5.8805]
[1747594686623,2.82757434,170.05,169.98,5.8805]
[1747594686818,2.82757434,170.04,169.98,5.8805]
[1747594687017,2.82757434,170.03,169.94,147.12]
[1747594687327,9.08982945,170.08,169.94,147.12]
[1747594687328,2.82952584,170.02,169.94,147.12]
[1747594687620,2.82937267,170.01,169.94,147.12]
[1747594687821,5.8794,170.02,169.94,147.12]
[1747594688014,73.44,170.05,169.94,73.78]
[1747594688218,8.7076776,170.04,169.94,73.78]
[1747594688414,2.8291776,170.03,169.94,73.78]
[1747594688626,2.8291776,170.03,170.0,5.8796]
[1747594690230,8.7079776,170.03,169.99,5.8802]
[1747594690429,2.8291776,170.02,169.94,73.78]
[1747594690626,2.8291776,170.01,169.94,73.78]
[1747594690927,2.83265663,170.0,169.97,5.8806]
[1747594691127,5.8796,170.01,169.94,73.78]
[1747594691317,73.44,170.05,169.94,73.78]
[1747594691524,2.83137316,170.04,169.94,73.78]
[1747594691724,2.83137316,170.03,169.94,73.78]
[1747594691924,2.83137316,170.02,169.94,73.78]
[1747594692125,79.3185,170.05,169.94,73.78]
[1747594692324,2.83183774,170.04,169.94,73.78]
[1747594692525,2.83183774,170.03,169.94,73.78]
[1747594692729,2.83183774,170.02,170.0,5.8796]
[1747594692933,79.3185,170.05,169.94,73.78]
[1747594693127,2.83081854,170.04,169.94,73.78]
[1747594693429,2.83081854,170.03,170.0,5.8796]
[1747594693625,1.9244,170.08,169.94,73.78]
[1747594693826,2.83140746,170.07,170.06,5.8778]
[1747594694027,7.16542945,170.09,170.04,73.78]
[1747594694532,7.16542945,170.09,170.08,5.8771]
[1747594700137,2.945e-05,170.09,170.08,5.8771]
[1747594700335,7.742e-05,170.11,170.1,5.8764]
[1747594700537,7.742e-05,170.11,170.1,79.6364]
[1747594704443,73.76,170.21,170.1,73.76]
[1747594704646,86.83518088,170.23,170.11,1.8867]
[1747594704939,5.8728,170.21,170.15,5.8744]
[1747594705142,2.82441448,170.2,170.12,72.18]
[1747594705339,86.79518088,170.23,170.12,72.18]
[1747594705545,5.8731,170.2,170.15,5.8743]
[1747594705844,5.8731,170.2,170.12,72.18]
[1747594706040,86.79518088,170.23,170.12,72.18]
[1747594706448,2.81867262,170.22,170.12,72.18]
[1747594706647,14.65518088,170.23,170.17,5.874]
[1747594706847,14.65518088,170.23,170.15,72.0]
[1747594707347,2.81699513,170.22,170.15,72.0]
[1747594707547,14.65518088,170.23,170.15,72.0]
[1747594707742,5.7778,170.23,170.15,72.0]
[1747594707947,5.8729,170.21,170.16,5.8742]
[1747594708548,5.873,170.2,170.16,5.8742]
[1747594708749,5.7778,170.23,170.16,5.8742]
[1747594709046,5.8728,170.21,170.16,5.8742]
[1747594709349,77.5778,170.23,170.15,72.0]
[1747594709751,5.8727,170.21,170.17,5.8738]
[1747594709953,5.7778,170.23,170.15,72.0]
[1747594710251,9.7615,170.23,170.18,5.8733]
[1747594710856,3.8894,170.23,170.15,72.0]
[1747594711247,1.9588,170.23,170.15,72.0]
[1747594712461,5.8725,170.22,170.15,72.0]
[1747594713162,5.8725,170.22,170.18,5.8736]